bitfinex/quotes_SOLUSD_20260228
["timestamp","ask_amount","ask_price","bid_price","bid_amount"]
[1772264286372,12.70502737,78.709,78.68,0.88608634]
[1772264286877,0.1,78.71,78.681,0.88608634]
[1772264287560,0.1,78.71,78.64,69.34275437]
[1772264287561,17.33367916,78.69,78.654,0.88608634]
[1772264287757,0.1,78.71,78.653,12.7140732]
[1772264287758,17.33367916,78.7,78.661,0.88608634]
[1772264288057,17.33367916,78.69,78.661,0.88608634]
[1772264289677,17.33367916,78.69,78.663,0.88608634]
[1772264290573,0.1,78.71,78.681,0.92710655]
[1772264290779,12.70502737,78.709,78.681,0.92710655]
[1772264291471,17.43367916,78.71,78.681,0.92710655]
[1772264291862,30.13856452,78.71,78.682,12.70938715]
[1772264292263,0.1,78.71,78.683,0.92710655]
[1772264292678,12.70502737,78.709,78.683,0.92710655]
[1772264292883,17.43367916,78.71,78.683,0.92710655]
[1772264293071,0.1,78.71,78.683,0.92710655]
[1772264293262,38.36,78.752,78.681,44.4833801]
[1772264293263,0.54418642,78.748,78.701,0.92710655]
[1772264293469,17.43367916,78.75,78.721,0.92710655]
[1772264293470,0.1,78.75,78.721,0.92710655]
[1772264293668,0.1,78.75,78.731,0.92710655]
[1772264293987,0.1,78.75,78.731,13.62845932]
[1772264294665,0.1,78.75,78.732,0.92710655]
[1772264295378,0.1,78.76,78.732,0.92710655]
[1772264295963,0.1,78.76,78.734,0.92710655]
[1772264296166,17.43367916,78.76,78.734,0.92710655]
[1772264296371,17.43367916,78.76,78.732,0.92710655]
[1772264297782,0.54480684,78.739,78.706,12.70551165]
[1772264297992,17.33367916,78.73,78.707,0.92710655]
[1772264298192,17.33367916,78.72,78.688,0.92710655]
[1772264299187,63.58465769,78.76,78.685,12.70890258]
[1772264299188,0.1,78.76,78.692,0.92710655]
[1772264299388,7.97840359,78.796,78.751,0.92710655]
[1772264299594,0.54504515,78.806,78.763,0.92710655]
[1772264299793,0.54504515,78.806,78.78,17.33367916]
[1772264299972,0.54504515,78.816,78.79,17.33367916]
[1772264300493,31.70425057,78.854,78.782,0.92710655]
[1772264300494,17.33367916,78.82,78.782,0.92710655]
[1772264300672,17.33367916,78.82,78.79,17.33367916]
[1772264300992,17.33367916,78.82,78.79,18.26078571]
[1772264301196,17.33367916,78.83,78.791,0.92710655]
[1772264301413,0.78649445,78.834,78.801,0.92710655]
[1772264301414,1e-08,78.834,78.801,0.92710655]
[1772264301575,17.43367916,78.86,78.821,0.92710655]
[1772264301770,17.33367916,78.85,78.821,0.92710655]
[1772264301995,17.33367916,78.85,78.823,0.92710655]
[1772264302496,0.1,78.86,78.823,0.92710655]
[1772264302680,0.1,78.86,78.821,12.68683988]
[1772264302681,0.1,78.86,78.84,18.26078571]
[1772264302875,17.43367916,78.86,78.83,0.92710655]
[1772264303204,0.1,78.86,78.83,0.92710655]
[1772264303368,0.1,78.86,78.821,0.92710655]
[1772264303369,17.33367916,78.85,78.821,0.92710655]
[1772264303573,17.33367916,78.84,78.811,0.92710655]
[1772264303781,17.33367916,78.83,78.786,0.92710655]
[1772264304095,17.33367916,78.83,78.793,0.92710655]
[1772264304402,17.33367916,78.84,78.811,0.92710655]
[1772264304575,17.43367916,78.86,78.831,0.92710655]
[1772264304972,0.1,78.86,78.831,0.92710655]
[1772264305179,17.43367916,78.86,78.831,0.92710655]
[1772264305475,12.68086077,78.859,78.82,17.33367916]
[1772264305677,17.33367916,78.85,78.82,17.33367916]
[1772264305901,0.89399825,78.839,78.792,44.42075337]
[1772264306072,0.89399825,78.839,78.801,12.69019428]
[1772264306272,18.22767741,78.85,78.81,17.33367916]
[1772264306693,0.89399825,78.85,78.81,17.33367916]
[1772264306899,0.89399825,78.849,78.81,17.33367916]
[1772264307287,0.89399825,78.849,78.811,0.92710655]
[1772264307489,17.33367916,78.85,78.821,0.92710655]
[1772264307696,0.99399825,78.86,78.821,0.92710655]
[1772264308014,0.99399825,78.86,78.801,44.41567999]
[1772264308015,17.43367916,78.87,78.84,18.26078571]
[1772264308306,0.1,78.87,78.841,13.61086246]
[1772264308502,17.43367916,78.87,78.841,13.61086246]
[1772264308695,0.1,78.87,78.85,17.33367916]
[1772264308897,0.1,78.87,78.842,0.92710655]
[1772264308898,17.43367916,78.87,78.842,0.92710655]
[1772264309075,17.43367916,78.87,78.75,50.79360643]
[1772264309076,17.33367916,78.86,78.836,0.92710655]
[1772264309396,17.43367916,78.87,78.836,0.92710655]
[1772264309696,17.43367916,78.87,78.841,0.92710655]
[1772264310292,12.67925293,78.869,78.835,12.68464275]
[1772264310492,12.67925293,78.869,78.808,0.92710655]
[1772264310493,0.58402444,78.849,78.808,0.92710655]
[1772264310803,17.33367916,78.84,78.811,0.92710655]
[1772264311800,0.28432314,78.858,78.811,0.92710655]
[1772264312099,17.33367916,78.83,78.801,0.92710655]
[1772264312300,17.33367916,78.83,78.803,12.68987221]
[1772264312594,17.33367916,78.83,78.79,17.33367916]
[1772264312595,17.33367916,78.83,78.804,0.92710655]
[1772264313408,12.68568673,78.829,78.796,0.92710655]
[1772264313789,17.33367916,78.83,78.801,0.92710655]
[1772264314090,17.33367916,78.82,78.789,0.92710655]
[1772264314313,50.70105789,78.894,78.742,0.92710655]
[1772264314314,17.33367916,78.8,78.742,0.92710655]
[1772264314504,17.33367916,78.79,78.751,0.92710655]
[1772264315108,12.69051637,78.799,78.761,0.92710655]
[1772264315406,17.33367916,78.79,78.761,0.92710655]
[1772264316400,17.33367916,78.77,78.74,0.92710655]
[1772264316623,17.33367916,78.79,78.751,0.92710655]
[1772264316823,50.71451945,78.873,78.74,12.7000254]
[1772264316824,0.64263038,78.826,78.781,0.92710655]
[1772264317004,17.33367916,78.82,78.781,0.92710655]
[1772264317202,0.64263038,78.826,78.781,0.92710655]
[1772264317203,17.33367916,78.81,78.781,0.92710655]
[1772264317606,17.33367916,78.81,78.74,107.9502159]
[1772264317607,17.33367916,78.79,78.759,0.92710655]
[1772264318039,17.33367916,78.79,78.761,0.92710655]
[1772264318403,17.33367916,78.79,78.762,13.62358454]
[1772264318608,0.66641593,78.85,78.784,0.28432314]
[1772264318814,44.38076157,78.863,78.772,5.36086188]
[1772264318815,0.66641593,78.839,78.8,17.33367916]
[1772264319019,0.66641593,78.839,78.801,0.92710655]
[1772264319218,17.33367916,78.83,78.801,0.92710655]
[1772264320323,17.33367916,78.82,78.791,0.99833377]
[1772264321323,0.70107952,78.862,78.801,0.99833377]
[1772264321513,17.24289459,78.84,78.801,0.99833377]
[1772264321910,17.24289459,78.83,78.801,0.99833377]
[1772264322607,12.68568673,78.829,78.801,0.99833377]
[1772264322813,12.68568673,78.829,78.78,31.73379213]
[1772264322814,17.24289459,78.82,78.781,0.9730615]
[1772264323021,17.24289459,78.82,78.782,0.9730615]
[1772264323540,38.17,78.861,78.781,12.69341592]
[1772264323541,38.17,78.861,78.784,0.9730615]
[1772264323723,38.17,78.861,78.781,12.69341592]
[1772264323724,2.47215037,99.404,78.853,0.62696019]
[1772264323725,0.99265639,78.969,78.853,0.62696019]
[1772264323934,6.12047023,79.0,78.785,1.26927714]
[1772264323935,3.55835151,78.943,78.92,17.24289459]
[1772264324254,17.24289459,78.96,78.911,5.36086188]
[1772264324536,17.24289459,78.96,78.873,63.71173753]
[1772264324537,17.48422679,78.99,78.933,0.9730615]
[1772264324748,12.65999063,78.989,78.933,0.9730615]
[1772264324908,12.65999063,78.989,78.914,44.35207947]
[1772264324909,31.63151615,79.036,78.951,0.14216157]
[1772264325112,12.65710633,79.007,78.961,0.9730615]
[1772264325311,12.65710633,79.007,78.95,17.24289459]
[1772264325548,13.42921609,79.008,78.96,17.24289459]
[1772264325829,0.77211938,79.008,78.934,5.36086188]
[1772264326029,0.99265639,79.077,78.98,17.24289459]
[1772264326207,0.99265639,79.077,79.0,17.24289459]
[1772264326412,0.99265639,79.077,78.96,17.24289459]
[1772264326413,5.97391806,79.09,79.015,0.9730615]
[1772264326414,0.99265639,79.09,79.015,0.9730615]
[1772264326615,50.53135691,79.159,79.02,17.24289459]
[1772264326616,0.99265639,79.139,79.02,17.24289459]
[1772264326812,0.80303003,79.129,79.023,0.28432314]
[1772264327009,44.22262934,79.145,79.025,63.43735973]
[1772264327234,44.22262934,79.145,79.02,17.24289459]
[1772264327415,44.22262934,79.145,79.016,44.29482635]
[1772264327416,11.40820695,79.145,79.016,94.91748505]
[1772264327614,11.40820695,79.145,79.016,12.65566467]
[1772264327615,61.94835477,79.145,79.016,12.65566467]
[1772264327835,17.24289459,79.12,79.07,17.24289459]
[1772264328019,17.24289459,79.14,79.09,17.24289459]
[1772264328220,17.24289459,79.14,79.02,17.24289459]
[1772264328221,17.24289459,79.14,79.04,0.28432314]
[1772264328530,50.52369723,79.171,79.02,17.24289459]
[1772264328531,0.08599922,79.128,79.08,17.24289459]
[1772264328911,0.08599922,79.128,79.065,1.07455187]
[1772264329118,0.08599922,79.128,79.09,17.24289459]
[1772264329327,63.17518478,79.145,79.081,1.07455187]
[1772264329328,0.21558706,79.145,79.081,1.07455187]
[1772264329520,0.21558706,79.145,79.08,17.24289459]
[1772264329521,0.21558706,79.145,79.11,17.24289459]
[1772264329722,0.99265639,79.129,79.021,9.98972686]
[1772264329930,12.63487731,79.146,79.07,0.9730615]
[1772264329931,17.24289459,79.1,79.07,0.9730615]
[1772264330137,0.99265639,79.114,79.06,17.24289459]
[1772264330324,0.99265639,79.114,79.023,5.50302345]
[1772264330325,17.24289459,79.09,79.023,0.14216157]
[1772264330525,0.99265639,79.114,78.991,12.65967008]
[1772264330526,17.24289459,79.06,78.991,12.65967008]
[1772264330727,17.24289459,79.05,78.991,12.65967008]
[1772264330932,17.24289459,79.05,78.985,57.14]
[1772264330933,17.24289459,79.03,78.99,17.24289459]
[1772264331146,17.24289459,79.03,78.985,57.14]
[1772264331147,0.99265639,79.062,79.02,17.24289459]
[1772264331564,107.47385856,79.089,78.986,44.31165015]
[1772264331565,0.99265639,79.075,78.986,44.31165015]
[1772264331840,0.99265639,79.101,79.05,17.24289459]
[1772264332050,0.99265639,79.109,79.07,17.24289459]
[1772264332345,17.24289459,79.09,79.051,0.9730615]
[1772264332548,12.64398336,79.089,79.051,0.9730615]
[1772264332849,31.59996966,79.114,79.061,0.9730615]
[1772264332850,17.24289459,79.1,79.061,0.9730615]
[1772264333083,17.24289459,79.09,79.061,0.9730615]
[1772264333342,17.24289459,79.08,79.061,0.9730615]
[1772264333540,17.24289459,79.08,79.047,0.9730615]
[1772264333730,0.99265639,79.101,79.047,0.9730615]
[1772264333731,17.24289459,79.09,79.047,0.9730615]
[1772264333932,63.68839279,79.149,79.033,12.65290873]
[1772264333933,17.24289459,79.1,79.051,0.9730615]
[1772264334143,17.24289459,79.1,79.033,44.28526483]
[1772264334144,17.24289459,79.11,79.071,0.9730615]
[1772264334444,12.64078676,79.109,79.071,0.9730615]
[1772264334644,12.64078676,79.109,79.045,0.9730615]
[1772264334645,17.24289459,79.08,79.045,0.9730615]
[1772264335046,17.24289459,79.09,79.045,0.9730615]
[1772264335346,17.24289459,79.1,79.051,0.9730615]
[1772264335653,12.64078676,79.109,79.061,0.9730615]
[1772264335854,12.63870984,79.122,79.081,0.9730615]
[1772264336025,12.63870984,79.122,79.021,0.9730615]
[1772264336026,17.24289459,79.1,79.021,0.9730615]
[1772264336226,17.24289459,79.1,79.061,0.9730615]
[1772264336448,17.24289459,79.12,79.071,0.9730615]
[1772264336648,12.63870984,79.122,79.071,0.9730615]
[1772264336649,17.24289459,79.11,79.071,0.9730615]
[1772264336859,17.24289459,79.1,79.071,0.9730615]
[1772264337067,12.63695297,79.133,79.071,0.9730615]
[1772264337068,17.24289459,79.12,79.081,0.9730615]
[1772264337659,17.24289459,79.12,79.08,17.24289459]
[1772264337660,12.63390182,79.153,79.111,0.9730615]
[1772264337848,12.63390182,79.153,79.08,17.24289459]
[1772264337849,17.24289459,79.17,79.131,0.9730615]
[1772264338256,0.99265639,79.186,79.131,0.9730615]
[1772264338460,0.99265639,79.175,79.117,0.9730615]
[1772264338659,17.24289459,79.2,79.121,0.9730615]
[1772264338660,17.24289459,79.16,79.121,0.9730615]
[1772264338866,17.24289459,79.15,79.121,0.9730615]
[1772264339070,0.99265639,79.197,79.131,0.9730615]
[1772264339274,44.19303516,79.198,79.131,0.9730615]
[1772264339275,17.24289459,79.16,79.131,0.9730615]
[1772264339652,0.99265639,79.187,79.131,0.9730615]
[1772264340167,107.32594255,79.198,79.151,0.9730615]
[1772264340168,17.24289459,79.18,79.151,0.9730615]
[1772264340372,17.24289459,79.17,79.151,0.9730615]
[1772264340669,17.24289459,79.17,79.103,5.36086188]
[1772264340670,12.62690034,79.196,79.153,0.9730615]
[1772264340966,12.62690034,79.196,79.161,0.9730615]
[1772264341195,0.1,79.23,79.152,12.63391954]
[1772264341196,12.62195968,79.227,79.181,0.9730615]
[1772264341467,0.1,79.23,79.201,0.9730615]
[1772264341773,17.24289459,79.22,79.18,17.24289459]
[1772264342080,17.24289459,79.22,79.14,17.24289459]
[1772264342081,17.24289459,79.19,79.125,5.36086188]
[1772264342264,17.24289459,79.19,79.14,17.24289459]
[1772264342573,17.24289459,79.19,79.107,63.20515397]
[1772264342574,17.24289459,79.16,79.12,17.24289459]
[1772264342748,17.24289459,79.16,79.04,50.60693122]
[1772264342749,17.24289459,79.15,79.087,31.61038075]
[1772264342950,12.63341824,79.156,79.12,17.24289459]
[1772264343149,12.63341824,79.156,79.1,17.24289459]
[1772264343352,12.63341824,79.156,79.12,17.24289459]
[1772264343648,17.24289459,79.15,79.111,0.9730615]
[1772264343868,17.24289459,79.16,79.111,0.9730615]
[1772264344168,17.24289459,79.15,79.111,0.9730615]
[1772264344376,12.62870631,79.185,79.141,0.9730615]
[1772264344583,17.24289459,79.17,79.141,0.9730615]
[1772264344760,17.24289459,79.18,79.141,0.9730615]
[1772264344958,12.6288139,79.184,79.143,0.9730615]
[1772264345270,17.24289459,79.16,79.133,0.9730615]
[1772264345660,17.24289459,79.18,79.141,0.9730615]
[1772264346060,17.24289459,79.19,79.151,0.9730615]
[1772264346263,50.44968561,79.287,79.094,44.25114419]
[1772264346264,12.61972268,79.242,79.181,0.9730615]
[1772264346563,17.24289459,79.32,79.14,17.24289459]
[1772264346564,17.24289459,79.23,79.203,0.9730615]
[1772264346769,17.24289459,79.25,79.203,0.9730615]
[1772264346967,0.99265639,79.275,79.221,0.9730615]
[1772264347196,0.99265639,79.275,79.189,44.19793234]
[1772264347197,0.99265639,79.288,79.227,0.9730615]
[1772264347362,17.24289459,79.32,79.241,0.9730615]
[1772264347363,22.25356472,79.29,79.241,0.9730615]
[1772264347560,22.25356472,79.29,79.2,17.24289459]
[1772264347561,17.24289459,79.3,79.256,0.9730615]
[1772264347872,1e-08,79.303,79.221,0.9730615]
[1772264347873,0.99265639,79.269,79.221,0.9730615]
[1772264348178,44.13507855,79.302,79.206,0.9730615]
[1772264348179,17.24289459,79.24,79.206,0.9730615]
[1772264348479,17.24289459,79.24,79.179,56.96]
[1772264348480,17.24289459,79.23,79.19,18.21595609]
[1772264348794,17.24289459,79.27,79.221,0.9730615]
[1772264348998,17.24289459,79.25,79.201,0.9730615]
[1772264349284,50.43288475,79.314,79.201,0.9730615]
[1772264349285,17.24289459,79.33,79.25,17.24289459]
[1772264349462,50.37802323,79.4,79.19,214.67356989]
[1772264349463,12.58764145,79.443,79.322,0.04589966]
[1772264349658,12.58764145,79.443,79.321,0.28432314]
[1772264349659,17.24289459,79.44,79.325,0.04589966]
[1772264349865,44.05674508,79.443,79.322,0.04589966]
[1772264350065,17.24289459,79.39,79.34,17.24289459]
[1772264350266,17.24289459,79.38,79.33,17.24289459]
[1772264350468,17.24289459,79.44,79.36,17.24289459]
[1772264350661,17.24289459,79.44,79.32,17.24289459]
[1772264350662,12.5838206,79.468,79.42,17.24289459]
[1772264350862,17.24289459,79.47,79.43,17.24289459]
[1772264351082,17.24289459,79.5,79.401,0.13017148]
[1772264351083,12.58510678,79.459,79.401,0.13017148]
[1772264351281,0.2413322,79.46,79.401,0.13017148]
[1772264351489,0.2413322,79.46,79.348,62.55581349]
[1772264351490,26.46701807,79.45,79.387,0.16811458]
[1772264351781,0.2413322,79.46,79.334,156.78026008]
[1772264351782,1.63337015,79.458,79.44,26.46701807]
[1772264351985,0.2413322,79.46,79.334,245.7962538]
[1772264351986,1.71742744,79.492,79.45,26.46701807]
[1772264352203,1.71742744,79.506,79.48,26.46701807]
[1772264352368,1.71742744,79.506,79.47,26.46701807]
[1772264352569,1.71742744,79.506,79.437,0.03759676]
[1772264352765,1.71742744,79.479,79.393,0.03759676]
[1772264352984,62.71597989,79.553,79.41,26.46701807]
[1772264352985,26.46701807,79.46,79.41,26.46701807]
[1772264353185,1.71742744,79.469,79.393,12.59555127]
[1772264353186,1.71742744,79.469,79.42,26.46701807]
[1772264353406,1.71742744,79.469,79.411,0.03759676]
[1772264353592,26.46701807,79.49,79.441,0.09163976]
[1772264354102,12.57988225,79.492,79.45,26.46701807]
[1772264354271,26.46701807,79.5,79.451,0.09163976]
[1772264354769,1.71742744,79.514,79.452,0.28432314]
[1772264354970,1.81418649,79.539,79.464,0.28432314]
[1772264355170,12.5718165,79.543,79.464,0.28432314]
[1772264355171,62.20625541,79.638,79.491,1.60137919]
[1772264355365,62.20625541,79.638,79.451,44.05230896]
[1772264355366,26.46701807,79.52,79.451,44.05230896]
[1772264355677,26.46701807,79.5,79.462,1.60137919]
[1772264356078,26.46701807,79.52,79.471,1.60137919]
[1772264356389,26.46701807,79.6,79.48,26.46701807]
[1772264356575,26.46701807,79.6,79.451,12.58637399]
[1772264356576,26.46701807,79.51,79.468,14.18506067]
[1772264356774,26.46701807,79.51,79.429,62.57889061]
[1772264356775,26.46701807,79.49,79.452,1.60137919]
[1772264357087,112.47457277,79.574,79.388,62.19450978]
[1772264357088,26.46701807,79.52,79.471,1.60137919]
[1772264357299,26.46701807,79.52,79.477,1.60137919]
[1772264357501,26.46701807,79.5,79.463,1.60137919]
[1772264357796,26.46701807,79.51,79.463,1.60137919]
[1772264357975,26.46701807,79.5,79.463,1.60137919]
[1772264358287,207.33331657,79.582,79.421,1.60137919]
[1772264358288,26.46701807,79.47,79.421,1.60137919]
[1772264358596,12.58352313,79.469,79.431,1.60137919]
[1772264358775,26.46701807,79.46,79.418,1.60137919]
[1772264358971,12.58131141,79.483,79.431,1.60137919]
[1772264359295,1.59837533,79.482,79.431,1.60137919]
[1772264359483,26.46701807,79.46,79.431,1.60137919]
[1772264359785,26.46701807,79.46,79.383,107.07582227]
[1772264359786,1.59837533,79.472,79.411,1.60137919]
[1772264359983,26.46701807,79.46,79.411,1.60137919]
[1772264360182,26.46701807,79.46,79.346,62.40949519]
[1772264360183,1.59837533,79.445,79.384,1.60137919]
[1772264360388,26.46701807,79.42,79.384,1.60137919]
[1772264360572,94.35986837,79.483,79.354,1.60137919]
[1772264360573,26.46701807,79.4,79.354,1.60137919]
[1772264360888,26.46701807,79.4,79.356,1.60137919]
[1772264361086,26.46701807,79.39,79.356,1.60137919]
[1772264361289,39.06160545,79.4,79.356,1.60137919]
[1772264361493,26.46701807,79.39,79.356,1.60137919]
[1772264361792,26.46701807,79.4,79.356,1.60137919]
[1772264361989,26.46701807,79.44,79.391,1.60137919]
[1772264362203,26.46701807,79.44,79.4,26.46701807]
[1772264362490,12.57988225,79.492,79.42,26.46701807]
[1772264362491,1.59837533,79.468,79.42,26.46701807]
[1772264362691,1.59837533,79.468,79.393,5.36086188]
[1772264362692,62.96950688,79.6,79.46,26.46701807]
[1772264362892,62.96950688,79.6,79.4,26.46701807]
[1772264362893,43.97040163,79.599,79.47,26.46701807]
[1772264363078,26.46701807,79.51,79.461,1.59837533]
[1772264363279,43.97040163,79.599,79.491,1.59837533]
[1772264363478,26.46701807,79.55,79.5,26.46701807]
[1772264363678,26.46701807,79.55,79.51,26.46701807]
[1772264363892,26.46701807,79.54,79.496,1.60137919]
[1772264364078,26.46701807,79.54,79.5,26.46701807]
[1772264364393,12.55947296,79.622,79.536,0.28432314]
[1772264364602,26.46701807,79.62,79.563,1.60137919]
[1772264364903,26.46701807,79.62,79.566,0.28432314]
[1772264365082,26.46701807,79.61,79.565,1.60137919]
[1772264365279,1.59837533,79.6,79.558,5.64518502]
[1772264365479,12.56044715,79.615,79.552,1.60137919]
[1772264365480,26.46701807,79.59,79.552,1.60137919]
[1772264365699,1.59837533,79.614,79.561,1.60137919]
[1772264365994,1.59837533,79.614,79.551,12.57055222]
[1772264365995,26.46701807,79.63,79.59,26.46701807]
[1772264366194,1.59837533,79.644,79.59,26.46701807]
[1772264366495,1.59837533,79.644,79.533,55.84254799]
[1772264366496,1.59837533,79.599,79.534,55.84254799]
[1772264366696,1.59837533,79.579,79.534,68.4157291]
[1772264366927,50.22691609,79.639,79.534,68.4157291]
[1772264366928,12.56485016,79.588,79.54,26.46701807]
[1772264367212,26.46701807,79.57,79.534,68.4157291]
[1772264367401,62.38337323,79.652,79.534,68.4157291]
[1772264367402,62.09666385,79.712,79.561,0.28432314]
[1772264367585,62.09666385,79.712,79.534,68.4157291]
[1772264367586,26.46701807,79.67,79.624,1.60137919]
[1772264367783,43.91963959,79.691,79.624,1.60137919]
[1772264367784,26.46701807,79.66,79.624,1.60137919]
[1772264367987,1.59837533,79.679,79.624,1.60137919]
[1772264368204,1.59837533,79.679,79.565,62.69331777]
[1772264368205,1.59837533,79.679,79.63,1.60137919]
[1772264368509,1.59837533,79.679,79.14,48.61154394]
[1772264368510,26.46701807,79.64,79.598,1.60137919]
[1772264368685,26.46701807,79.64,79.535,82.30956606]
[1772264368686,26.46701807,79.61,79.573,1.60137919]
[1772264369009,12.5568196,79.638,79.573,1.60137919]
[1772264369010,1.59837533,79.626,79.573,1.60137919]
[1772264369209,26.46701807,79.6,79.553,1.60137919]
[1772264369384,1.59837533,79.613,79.554,14.17145737]
[1772264369588,1.59837533,79.613,79.54,57.89738504]
[1772264369589,1.59837533,79.585,79.54,12.57229067]
[1772264369792,26.46701807,79.59,79.551,1.60137919]
[1772264369992,26.46701807,79.59,79.54,39.03930874]
[1772264369993,26.46701807,79.57,79.54,12.57229067]
[1772264370183,26.46701807,79.57,79.535,55.84254799]
[1772264370387,26.46701807,79.56,79.535,55.84254799]
[1772264370705,12.5692882,79.559,79.535,55.84254799]
[1772264371209,26.46701807,79.56,79.509,1.60137919]
[1772264371394,12.55965837,79.62,79.436,107.03443834]
[1772264371395,1.59837533,79.619,79.55,26.46701807]
[1772264371714,26.46701807,79.59,79.541,1.60137919]
[1772264371917,26.46701807,79.57,79.525,1.60137919]
[1772264372104,26.46701807,79.56,79.525,1.60137919]
[1772264372429,106.75709619,79.62,79.511,12.57673758]
[1772264372430,26.46701807,79.55,79.512,1.60137919]
[1772264372587,1.59837533,79.563,79.511,12.57673758]
[1772264372588,26.46701807,79.54,79.511,12.57673758]
[1772264372789,26.46701807,79.6,79.495,12.579382]
[1772264372790,26.46701807,79.53,79.495,12.579382]
[1772264373001,26.46701807,79.53,79.47,62.17129904]
[1772264373002,1.59837533,79.563,79.51,26.46701807]
[1772264373205,1.59837533,79.539,79.485,1.60137919]
[1772264373411,26.46701807,79.52,79.48,26.46701807]
[1772264373704,62.82503971,79.587,79.453,12.58605716]
[1772264373705,1.59837533,79.509,79.453,12.58605716]
[1772264373926,1.59837533,79.509,79.376,37.8000378]
[1772264373927,1.59837533,79.459,79.41,48.20782799]
[1772264374131,1.59837533,79.474,79.41,60.80059143]
[1772264374409,471.11144606,79.599,79.421,1.60137919]
[1772264374410,26.46701807,79.46,79.421,1.60137919]
[1772264374619,26.46701807,79.43,79.39,26.46701807]
[1772264374913,26.46701807,79.42,79.373,1.60137919]
[1772264375497,26.46701807,79.41,79.373,1.60137919]
[1772264375705,1.59837533,79.429,79.38,26.46701807]
[1772264375898,28.0653934,79.41,79.37,26.46701807]
[1772264376113,26.46701807,79.4,79.37,26.46701807]
[1772264376392,5.36086188,79.479,79.36,26.46701807]
[1772264376393,1.59837533,79.412,79.36,26.46701807]
[1772264376593,26.46701807,79.4,79.359,12.60096523]
[1772264376813,26.46701807,79.4,79.346,53.36401396]
[1772264376814,26.46701807,79.39,79.36,26.46701807]
[1772264377118,1.59837533,79.399,79.36,26.46701807]
[1772264377502,26.46701807,79.39,79.35,26.46701807]
[1772264377686,1.59837533,79.399,79.36,26.46701807]
[1772264377892,1.59837533,79.399,79.327,63.02961375]
[1772264377893,1.59837533,79.369,79.344,12.60327737]
[1772264378193,26.46701807,79.38,79.34,26.46701807]
[1772264378394,44.0728335,79.414,79.33,26.46701807]
[1772264378395,26.46701807,79.37,79.33,26.46701807]
[1772264378724,1.59837533,79.398,79.36,26.46701807]
[1772264379013,1.59837533,79.495,79.354,1.60137919]
[1772264379201,56.68,79.619,79.398,1.59837533]
[1772264379202,26.46701807,79.45,79.398,1.59837533]
[1772264379507,26.46701807,79.45,79.342,56.68]
[1772264379508,26.46701807,79.45,79.411,1.96896199]
[1772264379707,26.46701807,79.47,79.43,1.96896199]
[1772264379908,26.46701807,79.46,79.43,1.96896199]
[1772264380105,6.57116484,79.483,79.372,5.36086188]
[1772264380106,26.46701807,79.45,79.411,1.96896199]
[1772264380313,26.46701807,79.44,79.411,1.96896199]
[1772264380708,6.57116484,79.483,79.411,1.96896199]
[1772264380709,0.79466215,79.466,79.411,1.96896199]
[1772264381011,56.68,79.517,79.431,2.16340521]
[1772264381012,26.46701807,79.48,79.431,2.16340521]
[1772264381390,12.58146498,79.482,79.45,26.45542706]
[1772264381587,12.58146498,79.482,79.39,62.90368521]
[1772264381588,44.86138473,79.482,79.421,2.16248412]
[1772264381915,6.57177164,79.503,79.431,2.16248412]
[1772264382222,26.45542706,79.49,79.44,26.45542706]
[1772264382394,44.88157875,79.502,79.438,2.16248412]
[1772264382395,26.45542706,79.48,79.438,2.16248412]
[1772264382600,26.45542706,79.48,79.44,26.45542706]
[1772264382916,26.45542706,79.48,79.382,5.36086188]
[1772264382917,26.45542706,79.52,79.471,2.16248412]
[1772264383104,0.89098475,79.523,79.461,2.16248412]
[1772264383304,26.45542706,79.5,79.45,26.45542706]
[1772264383509,0.89098475,79.509,79.46,26.45542706]
[1772264383697,26.45542706,79.5,79.46,26.45542706]
[1772264384119,26.45542706,79.49,79.451,2.16248412]
[1772264384511,6.57066314,79.524,79.481,2.16248412]
[1772264384699,12.5749783,79.523,79.481,2.16248412]
[1772264384899,12.57474485,79.525,79.49,26.45542706]
[1772264385098,26.45542706,79.53,79.491,2.16248412]
[1772264385319,12.57088556,79.549,79.491,2.16248412]
[1772264385504,12.57088556,79.549,79.51,26.45542706]
[1772264385708,12.57088556,79.549,79.504,2.16248412]
[1772264385908,26.45542706,79.54,79.504,2.16248412]
[1772264386423,26.45542706,79.54,79.482,44.03512744]
[1772264386424,26.45542706,79.55,79.51,26.45542706]
[1772264386601,26.45542706,79.54,79.496,2.16248412]
[1772264386810,26.45542706,79.54,79.497,12.57909103]
[1772264387017,12.57102629,79.548,79.49,26.45542706]
[1772264387222,26.45542706,79.53,79.49,26.45542706]
[1772264387412,1.15278654,79.546,79.481,2.16248412]
[1772264387413,26.45542706,79.52,79.481,2.16248412]
[1772264387602,1.15278654,79.546,79.49,26.45542706]
[1772264387806,12.57102629,79.548,79.488,2.16248412]
[1772264388025,12.57102629,79.548,79.51,26.45542706]
[1772264388201,26.45542706,79.54,79.501,2.16248412]
[1772264388609,12.57102629,79.548,79.501,2.16248412]
[1772264388815,12.57244873,79.539,79.501,2.16248412]
[1772264389008,12.57244873,79.539,79.502,12.57829991]
[1772264389317,26.45542706,79.54,79.501,14.740848]
[1772264389517,26.45542706,79.54,79.501,2.16248412]